fUSD/lending_fUSD_20250127
["ID","MTS","AMOUNT","RATE_DAILY","PERIOD"]
[350598016,1737987038661,-500.0,0.00010999,2]
[350598018,1737987038677,-463.84009369,0.00010999,2]
[350598020,1737987038688,-500.0,0.00010999,2]
[350598022,1737987038698,-500.0,0.00010999,2]
[350598024,1737987038707,-1126.61,0.00010999,2]
[350598026,1737987038716,-500.0,0.00010999,2]
[350598028,1737987038726,-517.67,0.00010999,2]
[350598030,1737987038736,-926.93,0.00010999,2]
[350598032,1737987038746,-500.0,0.00010999,2]
[350598034,1737987038755,-500.0,0.00010999,2]
[350598036,1737987038765,-568.24,0.00010999,2]
[350598038,1737987038773,-576.66,0.00010999,2]
[350598040,1737987038782,-514.35,0.00010999,2]
[350598041,1737987038792,-500.0,0.00010999,2]
[350598043,1737987038801,-500.0,0.00010999,2]
[350598045,1737987038810,-927.42,0.00010999,2]
[350598047,1737987038819,-500.0,0.00010999,2]
[350598049,1737987038827,-786.07,0.00010999,2]
[350598050,1737987038836,-592.56,0.00010999,2]
[350598051,1737987038845,-878.22,0.00010999,2]
[350598052,1737987038854,-777.39,0.00010999,2]
[350598053,1737987038863,-500.0,0.00010999,2]
[350598054,1737987038872,-500.0,0.00010999,2]
[350598055,1737987038881,-868.82,0.00010999,2]
[350598056,1737987038891,-772.27,0.00010999,2]
[350598058,1737987038900,-500.0,0.00010999,2]
[350598060,1737987038910,-557.0,0.00010999,2]
[350598061,1737987038919,-500.0,0.00010999,2]
[350598062,1737987038928,-500.0,0.00010999,2]
[350598063,1737987038937,-500.0,0.00010999,2]
[350598064,1737987038947,-519.15,0.00010999,2]
[350598065,1737987038956,-561.41,0.00010999,2]
[350598066,1737987038966,-1436.2,0.00010999,2]
[350598067,1737987038975,-1056.48,0.00010999,2]
[350598068,1737987038985,-500.0,0.00010999,2]
[350598069,1737987038994,-500.0,0.00010999,2]
[350598070,1737987039004,-500.0,0.00010999,2]
[350598071,1737987039014,-500.0,0.00010999,2]
[350598072,1737987039023,-500.0,0.00010999,2]
[350598073,1737987039032,-500.0,0.00010999,2]
[350598074,1737987039042,-810.42,0.00010999,2]
[350598075,1737987039051,-500.0,0.00010999,2]
[350598076,1737987039060,-1340.84,0.00010999,2]
[350598077,1737987039070,-500.0,0.00010999,2]
[350598078,1737987039079,-500.0,0.00010999,2]
[350598079,1737987039088,-500.0,0.00010999,2]
[350598080,1737987039099,-525.59,0.00010999,2]
[350598081,1737987039108,-625.31,0.00010999,2]
[350598082,1737987039118,-1093.25,0.00010999,2]
[350598083,1737987039127,-500.0,0.00010999,2]
[350598084,1737987039137,-505.39,0.00010999,2]
[350598085,1737987039146,-500.0,0.00010999,2]
[350598086,1737987039156,-500.0,0.00010999,2]
[350598087,1737987039165,-500.0,0.00010999,2]
[350598088,1737987039175,-1355.34,0.00010999,2]
[350598089,1737987039184,-500.0,0.00010999,2]
[350598090,1737987039193,-500.0,0.00010999,2]
[350598091,1737987039203,-785.56,0.00010999,2]
[350598092,1737987039212,-271.36297565,0.00010999,2]
[350598093,1737987039221,-500.0,0.00010999,2]
[350598094,1737987039231,-500.0,0.00010999,2]
[350598095,1737987039239,-500.0,0.00010999,2]
[350598096,1737987039249,-599.48,0.00010999,2]
[350598097,1737987039258,-571.12,0.00010999,2]
[350598098,1737987039268,-500.0,0.00010999,2]
[350598099,1737987039277,-500.0,0.00010999,2]
[350598100,1737987039286,-465.89681342,0.00010999,2]
[350598101,1737987039295,-500.0,0.00010999,2]
[350598102,1737987039304,-500.0,0.00010999,2]
[350598103,1737987039313,-577.79953368,0.00010999,2]
[350598104,1737987039323,-500.0,0.00010999,2]
[350598105,1737987039332,-1119.25,0.00010999,2]
[350598106,1737987039341,-500.0,0.00010999,2]
[350598107,1737987039351,-1089.35,0.00010999,2]
[350598108,1737987039360,-732.16,0.00010999,2]
[350598109,1737987039370,-675.66,0.00010999,2]
[350598110,1737987039380,-1134.95,0.00010999,2]
[350598111,1737987039390,-500.0,0.00010999,2]
[350598112,1737987039399,-500.0,0.00010999,2]
[350598113,1737987039409,-500.0,0.00010999,2]
[350598114,1737987039418,-500.0,0.00010999,2]
[350598115,1737987039427,-500.0,0.00010999,2]
[350598116,1737987039436,-1090.38,0.00010999,2]
[350598117,1737987039446,-518.85,0.00010999,2]
[350598118,1737987039455,-500.0,0.00010999,2]
[350598119,1737987039465,-500.0,0.00010999,2]
[350598120,1737987039474,-500.0,0.00010999,2]
[350598121,1737987039483,-1490.79,0.00010999,2]
[350598122,1737987039493,-500.0,0.00010999,2]
[350598123,1737987039504,-606.78,0.00010999,2]
[350598124,1737987039513,-500.0,0.00010999,2]
[350598125,1737987039523,-1169.49,0.00010999,2]
[350598126,1737987039532,-500.0,0.00010999,2]
[350598127,1737987039542,-562.5,0.00010999,2]
[350598128,1737987039551,-500.0,0.00010999,2]
[350598129,1737987039561,-500.0,0.00010999,2]
[350598130,1737987039570,-500.0,0.00010999,2]
[350598131,1737987039580,-500.0,0.00010999,2]
[350598132,1737987039589,-570.43,0.00010999,2]
[350598133,1737987039599,-500.0,0.00010999,2]
[350598134,1737987039608,-500.0,0.00010999,2]
[350598135,1737987039618,-1016.77,0.00010999,2]
[350598136,1737987039627,-500.0,0.00010999,2]
[350598137,1737987039636,-2534.72,0.00010999,2]
[350598138,1737987039645,-500.0,0.00010999,2]
[350598139,1737987039655,-897.44,0.00010999,2]
[350598140,1737987039664,-500.0,0.00010999,2]
[350598141,1737987039675,-500.0,0.00010999,2]
[350598142,1737987039685,-1260.95,0.00010999,2]
[350598143,1737987039696,-594.07,0.00010999,2]
[350598144,1737987039706,-748.0,0.00010999,2]
[350598145,1737987039716,-500.0,0.00010999,2]
[350598146,1737987039725,-615.8,0.00010999,2]
[350598147,1737987039736,-1601.08,0.00010999,2]
[350598148,1737987039746,-500.0,0.00010999,2]
[350598149,1737987039755,-1301.67,0.00010999,2]
[350598150,1737987039765,-500.0,0.00010999,2]
[350598151,1737987039775,-500.0,0.00010999,2]
[350598152,1737987039784,-3185.52,0.00010999,2]
[350598153,1737987039794,-870.57,0.00010999,2]
[350598154,1737987039803,-500.0,0.00010999,2]
[350598155,1737987039813,-500.0,0.00010999,2]
[350598156,1737987039822,-500.0,0.00010999,2]
[350598157,1737987039831,-500.0,0.00010999,2]
[350598158,1737987039840,-10009.58035113,0.00011,2]
[350598159,1737987039850,-82236.0,0.00011,2]
[350598161,1737987039872,-40321.44193398,0.00011,2]
[350598163,1737987039882,-200.93951994,0.00011024,2]
[350598164,1737987039891,-2287.0,0.00011024,2]
[350598165,1737987039900,-2287.0,0.00011052,2]
[350598166,1737987039910,-501.21143477,0.0001106,2]
[350598167,1737987039921,-360.2884994,0.0001106,2]
[350598168,1737987039930,-500.0,0.0001106,2]
[350598169,1737987039940,-423.41814253,0.0001106,2]
[350598170,1737987039949,-150.189925,0.00011067,2]
[350598171,1737987039960,-2287.0,0.00011079,2]
[350598172,1737987039970,-500.0,0.00011098,2]
[350598173,1737987039980,-500.0,0.00011098,2]
[350598174,1737987039989,-500.0,0.00011098,2]
[350598175,1737987039999,-500.0,0.00011098,2]
[350598176,1737987040008,-500.0,0.00011098,2]
[350598177,1737987040018,-9063.65298315,0.00011099,2]
[350598179,1737987040028,-9063.65298306,0.00011099,2]
[350598181,1737987040038,-26937.75697649,0.00011099,2]
[350598183,1737987040048,-26937.75697642,0.00011099,2]
[350598186,1737987040058,-26937.75697642,0.00011099,2]
[350598187,1737987040067,-773.87,0.000111,2]
[350598188,1737987040076,-773.87,0.000111,2]
[350598189,1737987040085,-745.0,0.000111,2]
[350598190,1737987040094,-2287.0,0.00011107,2]
[350598191,1737987040105,-378.46643972,0.00011107,2]
[350598192,1737987040115,-200.0,0.00011107,2]
[350598193,1737987040124,-200.0,0.00011107,2]
[350598194,1737987040133,-9063.65298306,0.00011121,2]
[350598195,1737987040143,-2287.0,0.00011134,2]
[350598196,1737987040153,-918.26195293,0.00011144,2]
[350598197,1737987040163,-500.0,0.00011161,2]
[350598198,1737987040173,-2287.0,0.00011161,2]
[350598199,1737987040182,-2287.0,0.00011189,2]
[350598200,1737987040191,-622.99,0.000112,2]
[350598201,1737987040200,-773.87,0.000112,2]
[350598202,1737987040210,-548.39,0.000112,2]
[350598203,1737987040220,-200.0,0.000112,4]
[350598204,1737987040229,-559.0,0.00011205,2]
[350598205,1737987040384,-26937.75697642,0.00011205,2]
[350598206,1737987040398,-2287.0,0.00011216,2]
[350598207,1737987040407,-200.0,0.00011218,2]
[350598208,1737987040417,-200.0,0.00011218,2]
[350598209,1737987040427,-280.41,0.00011219,2]
[350598210,1737987040437,-9063.65298306,0.00011233,2]
[350598211,1737987040447,-2287.0,0.00011244,2]
[350598212,1737987040457,-2287.0,0.00011271,2]
[350598213,1737987040467,-1126.61,0.00011282,2]
[350598214,1737987040476,-514.35,0.00011282,2]
[350598215,1737987040486,-500.0,0.00011282,2]
[350598216,1737987040496,-500.0,0.00011282,2]
[350598217,1737987040506,-519.15,0.00011282,2]
[350598218,1737987040516,-161.4,0.00011282,2]
[350598219,1737987040526,-500.0,0.00011282,2]
[350598220,1737987040535,-500.0,0.00011282,2]
[350598221,1737987040545,-525.59,0.00011282,2]
[350598222,1737987040555,-500.0,0.00011282,2]
[350598223,1737987040564,-785.56,0.00011282,2]
[350598224,1737987040574,-599.48,0.00011282,2]
[350598225,1737987040583,-500.0,0.00011282,2]
[350598226,1737987040593,-1089.35,0.00011282,2]
[350598227,1737987040603,-500.0,0.00011282,2]
[350598228,1737987040614,-1490.79,0.00011282,2]
[350598229,1737987040624,-500.0,0.00011282,2]
[350598230,1737987040633,-897.44,0.00011282,2]
[350598231,1737987040642,-748.0,0.00011282,2]
[350598232,1737987040652,-1301.67,0.00011282,2]
[350598233,1737987040661,-500.0,0.00011282,2]
[350598234,1737987040676,-500.0,0.00011283,2]
[350598235,1737987040685,-500.0,0.00011283,2]
[350598236,1737987040695,-500.0,0.00011283,2]
[350598237,1737987040705,-500.0,0.00011283,2]
[350598238,1737987040715,-185.67592966,0.00011283,2]
[350598240,1737987040724,-500.0,0.00011283,2]
[350598241,1737987040734,-500.0,0.00011283,2]
[350598242,1737987040744,-500.0,0.00011283,2]
[350598243,1737987040754,-500.0,0.00011283,2]
[350598244,1737987040764,-500.0,0.00011283,2]
[350598245,1737987040774,-500.0,0.00011283,2]
[350598247,1737987040783,-500.0,0.00011283,2]
[350598249,1737987040793,-514.89,0.00011283,2]
[350598251,1737987040803,-500.0,0.00011283,2]
[350598253,1737987040812,-500.0,0.00011283,2]
[350598255,1737987040822,-500.0,0.00011283,2]
[350598257,1737987040831,-500.0,0.00011283,2]
[350598259,1737987040840,-527.50028309,0.00011283,2]
[350598261,1737987040850,-500.0,0.00011283,2]
[350598263,1737987040859,-500.0,0.00011283,2]
[350598265,1737987040869,-500.0,0.00011283,2]
[350598266,1737987040878,-500.0,0.00011283,2]
[350598267,1737987040887,-500.0,0.00011283,2]
[350598268,1737987040897,-500.0,0.00011283,2]
[350598269,1737987040907,-500.0,0.00011283,2]
[350598270,1737987040917,-600.96,0.00011283,2]
[350598271,1737987040927,-500.0,0.00011283,2]
[350598272,1737987040936,-500.0,0.00011283,2]
[350598273,1737987040946,-367.81054071,0.00011283,2]
[350598274,1737987040956,-500.0,0.00011283,2]
[350598275,1737987040966,-511.88984396,0.00011283,2]
[350598276,1737987040976,-500.0,0.00011283,2]
[350598277,1737987040986,-510.16768844,0.00011283,2]
[350598278,1737987040995,-500.0,0.00011283,2]
[350598279,1737987041005,-500.0,0.00011283,2]
[350598280,1737987041014,-500.0,0.00011283,2]
[350598281,1737987041025,-374.75920144,0.00011283,2]
[350598282,1737987041035,-274.50669702,0.00011283,2]
[350598283,1737987041045,-500.0,0.00011283,2]
[350598284,1737987041055,-500.0,0.00011283,2]
[350598285,1737987041065,-500.0,0.00011283,2]
[350598286,1737987041074,-500.0,0.00011283,2]
[350598287,1737987041084,-500.0,0.00011283,2]
[350598288,1737987041093,-500.0,0.00011283,2]
[350598289,1737987041103,-500.0,0.00011283,2]
[350598290,1737987041112,-500.0,0.00011283,2]
[350598291,1737987041122,-500.0,0.00011283,2]
[350598292,1737987041132,-500.0,0.00011283,2]
[350598293,1737987041141,-500.0,0.00011283,2]
[350598294,1737987041151,-500.0,0.00011283,2]
[350598295,1737987041161,-500.0,0.00011283,2]
[350598296,1737987041170,-156.95698013,0.00011283,2]
[350598297,1737987041180,-500.0,0.00011283,2]
[350598298,1737987041189,-500.47402969,0.00011283,2]
[350598299,1737987041199,-500.0,0.00011283,2]
[350598300,1737987041209,-500.0,0.00011283,2]
[350598301,1737987041219,-500.0,0.00011283,2]
[350598302,1737987041228,-511.03707663,0.00011283,2]
[350598303,1737987041239,-500.0,0.00011283,2]
[350598304,1737987041248,-500.0,0.00011283,2]
[350598305,1737987041257,-500.0,0.00011283,2]
[350598306,1737987041267,-500.0,0.00011283,2]
[350598307,1737987041277,-500.0,0.00011283,2]
[350598308,1737987041286,-500.0,0.00011283,2]
[350598309,1737987041295,-927.42,0.00011283,2]
[350598310,1737987041305,-786.07,0.00011283,2]
[350598311,1737987041314,-777.39,0.00011283,2]
[350598312,1737987041324,-500.0,0.00011283,2]
[350598313,1737987041334,-868.82,0.00011283,2]
[350598314,1737987041344,-253.19935468,0.00011283,2]
[350598315,1737987041353,-557.0,0.00011283,2]
[350598316,1737987041363,-240.38451931,0.00011283,2]
[350598317,1737987041372,-544.41496437,0.00011283,2]
[350598318,1737987041382,-1056.48,0.00011283,2]
[350598319,1737987041391,-500.0,0.00011283,2]
[350598320,1737987041401,-500.0,0.00011283,2]
[350598321,1737987041410,-500.0,0.00011283,2]
[350598322,1737987041419,-500.0,0.00011283,2]
[350598323,1737987041429,-500.0,0.00011283,2]
[350598324,1737987041439,-625.31,0.00011283,2]
[350598325,1737987041448,-500.0,0.00011283,2]
[350598326,1737987041458,-500.0,0.00011283,2]
[350598327,1737987041468,-500.0,0.00011283,2]
[350598328,1737987041478,-1355.34,0.00011283,2]
[350598329,1737987041488,-500.0,0.00011283,2]
[350598330,1737987041497,-500.0,0.00011283,2]
[350598331,1737987041507,-500.0,0.00011283,2]
[350598332,1737987041517,-500.0,0.00011283,2]
[350598333,1737987041527,-500.0,0.00011283,2]
[350598334,1737987041537,-500.0,0.00011283,2]
[350598335,1737987041547,-500.0,0.00011283,2]
[350598336,1737987041556,-675.66,0.00011283,2]
[350598337,1737987041566,-500.0,0.00011283,2]
[350598338,1737987041575,-500.0,0.00011283,2]
[350598339,1737987041584,-500.0,0.00011283,2]
[350598340,1737987041594,-500.0,0.00011283,2]
[350598341,1737987041603,-2534.72,0.00011283,2]
[350598342,1737987041613,-615.8,0.00011283,2]
[350598343,1737987041622,-3185.52,0.00011283,2]
[350598344,1737987041631,-382.9490581,0.00011294,2]
[350598345,1737987041641,-2287.0,0.00011298,2]
[350598346,1737987041650,-462.0,0.000113,2]
[350598347,1737987041660,-366.0,0.000113,2]
[350598348,1737987041670,-500.0,0.000113,4]
[350598349,1737987041679,-3906.0,0.00011301,2]
[350598350,1737987041693,-150.0,0.00011301,2]
[350598351,1737987041703,-1107.0,0.00011301,2]
[350598352,1737987041713,-26937.75697642,0.00011321,2]
[350598353,1737987041722,-2287.0,0.00011326,2]
[350598354,1737987041733,-200.0,0.0001133,2]
[350598355,1737987041742,-200.0,0.0001133,2]
[350598356,1737987041752,-9063.65298306,0.00011344,2]
[350598357,1737987041761,-2287.0,0.00011353,2]
[350598358,1737987041771,-184.1873916,0.00011355,2]
[350598359,1737987041781,-2287.0,0.00011381,2]
[350598360,1737987041791,-732.16,0.00011396,2]
[350598361,1737987041800,-500.0,0.00011396,2]
[350598362,1737987041810,-518.85,0.00011396,2]
[350598363,1737987041820,-606.78,0.00011396,2]
[350598364,1737987041829,-562.5,0.00011396,2]
[350598365,1737987041839,-570.43,0.00011396,2]
[350598366,1737987041848,-1016.77,0.00011396,2]
[350598367,1737987041858,-500.0,0.00011396,2]
[350598368,1737987041867,-594.07,0.00011396,2]
[350598369,1737987041877,-1601.08,0.00011396,2]
[350598370,1737987041886,-500.0,0.00011396,2]
[350598371,1737987041896,-500.0,0.00011396,2]
[350598372,1737987041906,-500.0,0.00011396,2]
[350598373,1737987041915,-208.14362333,0.00011397,2]
[350598374,1737987041924,-500.0,0.00011397,2]
[350598375,1737987041934,-500.0,0.00011397,2]
[350598376,1737987041943,-500.0,0.00011397,2]
[350598377,1737987041952,-500.0,0.00011397,2]
[350598378,1737987041962,-500.0,0.00011397,2]
[350598379,1737987041971,-500.0,0.00011397,2]
[350598380,1737987041981,-500.0,0.00011397,2]
[350598381,1737987041991,-500.0,0.00011397,2]
[350598382,1737987042000,-500.0,0.00011397,2]
[350598383,1737987042009,-500.0,0.00011397,2]
[350598384,1737987042019,-500.0,0.00011397,2]
[350598385,1737987042028,-500.0,0.00011397,2]
[350598386,1737987042038,-500.0,0.00011397,2]
[350598387,1737987042047,-500.0,0.00011397,2]
[350598388,1737987042056,-500.0,0.00011397,2]
[350598389,1737987042065,-501.51856003,0.00011397,2]
[350598390,1737987042075,-500.0,0.00011397,2]
[350598391,1737987042084,-500.0,0.00011397,2]
[350598392,1737987042093,-500.0,0.00011397,2]
[350598393,1737987042103,-500.0,0.00011397,2]
[350598394,1737987042112,-500.0,0.00011397,2]
[350598395,1737987042121,-500.0,0.00011397,2]
[350598396,1737987042130,-500.0,0.00011397,2]
[350598397,1737987042139,-500.0,0.00011397,2]
[350598398,1737987042149,-500.0,0.00011397,2]
[350598399,1737987042158,-500.0,0.00011397,2]
[350598400,1737987042168,-500.0,0.00011397,2]
[350598401,1737987042177,-500.0,0.00011397,2]
[350598402,1737987042187,-926.93,0.00011397,2]
[350598403,1737987042197,-568.24,0.00011397,2]
[350598404,1737987042206,-592.56,0.00011397,2]
[350598405,1737987042216,-772.27,0.00011397,2]
[350598406,1737987042225,-500.0,0.00011397,2]
[350598407,1737987042235,-1436.2,0.00011397,2]
[350598408,1737987042244,-500.0,0.00011397,2]
[350598409,1737987042253,-1340.84,0.00011397,2]
[350598410,1737987042263,-505.39,0.00011397,2]
[350598411,1737987042272,-500.0,0.00011397,2]
[350598412,1737987042281,-571.12,0.00011397,2]
[350598413,1737987042290,-500.0,0.00011397,2]
[350598414,1737987042300,-500.0,0.00011397,2]
[350598415,1737987042309,-1119.25,0.00011397,2]
[350598416,1737987042318,-1134.95,0.00011397,2]
[350598417,1737987042328,-500.0,0.00011397,2]
[350598418,1737987042337,-1090.38,0.00011397,2]
[350598419,1737987042346,-500.0,0.00011397,2]
[350598420,1737987042356,-500.0,0.00011397,2]
[350598421,1737987042365,-500.0,0.00011397,2]
[350598422,1737987042375,-1169.49,0.00011397,2]
[350598423,1737987042384,-500.0,0.00011397,2]
[350598424,1737987042393,-500.0,0.00011397,2]
[350598425,1737987042403,-500.0,0.00011397,2]
[350598426,1737987042412,-500.0,0.00011397,2]
[350598427,1737987042421,-500.0,0.00011397,2]
[350598428,1737987042431,-500.0,0.00011397,2]
[350598429,1737987042440,-500.0,0.00011397,2]
[350598430,1737987042450,-1260.95,0.00011397,2]
[350598431,1737987042459,-500.0,0.00011397,2]
[350598432,1737987042468,-500.0,0.00011397,2]
[350598433,1737987042483,-870.57,0.00011397,2]
[350598434,1737987042493,-7784.42,0.00011398,2]
[350598435,1737987042502,-500.0,0.00011398,2]
[350598436,1737987042511,-500.0,0.00011398,2]
[350598437,1737987042520,-500.0,0.00011398,2]
[350598438,1737987042529,-517.67,0.00011398,2]
[350598439,1737987042538,-576.66,0.00011398,2]
[350598440,1737987042547,-878.22,0.00011398,2]
[350598441,1737987042557,-561.41,0.00011398,2]
[350598442,1737987042566,-500.0,0.00011398,2]
[350598443,1737987042576,-810.42,0.00011398,2]
[350598444,1737987042585,-1093.25,0.00011398,2]
[350598445,1737987042594,-150.0,0.00011399,2]
[350598446,1737987042603,-800.0,0.000114,4]
[350598447,1737987042613,-500.0,0.00011402,2]
[350598448,1737987042622,-2026.692,0.00011403,2]
[350598449,1737987042631,-1355.081,0.00011403,2]
[350598450,1737987042640,-150.914,0.00011403,2]
[350598451,1737987042650,-568.255,0.00011403,2]
[350598452,1737987042658,-701.493,0.00011403,2]
[350598453,1737987042670,-1866.0,0.00011403,2]
[350598454,1737987042680,-916.305,0.00011403,2]
[350598455,1737987042690,-2957.648,0.00011403,2]
[350598456,1737987042699,-862.0,0.00011403,2]
[350598457,1737987042709,-1267.152,0.00011403,2]
[350598458,1737987042718,-541.061,0.00011403,2]
[350598459,1737987042727,-150.0,0.00011403,2]
[350598460,1737987042736,-2287.0,0.00011408,2]
[350598461,1737987042746,-2287.0,0.00011435,2]
[350598462,1737987042756,-26937.75697642,0.00011437,2]
[350598463,1737987042766,-200.0,0.00011444,2]
[350598465,1737987042775,-9063.65298306,0.00011455,2]
[350598466,1737987042785,-2287.0,0.00011463,2]
[350598467,1737987042794,-918.26195291,0.00011471,2]
[350598468,1737987042803,-2227.12,0.00011478,2]
[350598469,1737987042812,-2287.0,0.0001149,2]
[350598470,1737987042821,-150.0,0.0001149,2]
[350598471,1737987042830,-150.0,0.00011493,2]
[350598472,1737987042840,-1100.0,0.000115,4]
[350598473,1737987042849,-2290.60284733,0.00011518,2]
[350598474,1737987042858,-150.189925,0.00011542,2]
[350598475,1737987042867,-1126.61,0.00011552,2]
[350598476,1737987042876,-514.35,0.00011552,2]
[350598477,1737987042885,-500.0,0.00011552,2]
[350598478,1737987042894,-500.0,0.00011552,2]
[350598479,1737987042903,-519.15,0.00011552,2]
[350598480,1737987042913,-500.0,0.00011552,2]
[350598481,1737987042922,-500.0,0.00011552,2]
[350598482,1737987042932,-525.59,0.00011552,2]
[350598483,1737987042942,-500.0,0.00011552,2]
[350598484,1737987042951,-785.56,0.00011552,2]
[350598485,1737987042960,-599.48,0.00011552,2]
[350598486,1737987042969,-500.0,0.00011552,2]
[350598487,1737987042978,-1089.35,0.00011552,2]
[350598488,1737987042987,-500.0,0.00011552,2]
[350598489,1737987042996,-1490.79,0.00011552,2]
[350598490,1737987043005,-500.0,0.00011552,2]
[350598491,1737987043014,-897.44,0.00011552,2]
[350598492,1737987043023,-748.0,0.00011552,2]
[350598493,1737987043032,-1301.67,0.00011552,2]
[350598494,1737987043042,-500.0,0.00011552,2]
[350598495,1737987043051,-26937.75697642,0.00011553,2]
[350598496,1737987043060,-9063.65298306,0.00011566,2]
[350598497,1737987043069,-500.0,0.00011599,2]
[350598498,1737987043078,-455.90974393,0.00011599,2]
[350598499,1737987043087,-500.0,0.00011599,2]
[350598500,1737987043096,-500.0,0.00011599,2]
[350598501,1737987043106,-500.0,0.00011599,2]
[350598502,1737987043115,-500.0,0.00011599,2]
[350598503,1737987043124,-786.07,0.00011599,2]
[350598504,1737987043133,-500.0,0.00011599,2]
[350598505,1737987043277,-500.0,0.00011599,2]
[350598506,1737987043286,-500.0,0.00011599,2]
[350598507,1737987043296,-357.07,0.00011599,2]
[350598508,1737987043305,-1355.34,0.00011599,2]
[350598509,1737987043314,-500.0,0.00011599,2]
[350598510,1737987043323,-500.0,0.00011599,2]
[350598511,1737987043333,-675.66,0.00011599,2]
[350598512,1737987043342,-500.0,0.00011599,2]
[350598513,1737987043350,-500.0,0.00011599,2]
[350598514,1737987043359,-2534.72,0.00011599,2]
[350598515,1737987043369,-3185.52,0.00011599,2]
[350598516,1737987043378,-23304.99301754,0.000116,2]
[350598517,1737987043388,-1400.0,0.000116,4]
[350598518,1737987043399,-1000.0,0.00011608,2]
[350598519,1737987043410,-150.189925,0.00011644,2]
[350598520,1737987043420,-26937.75697642,0.00011668,2]
[350598521,1737987043432,-9063.65298306,0.00011678,2]
[350598522,1737987043442,-200.0,0.000117,4]
[350598523,1737987043453,-150.189925,0.00011759,2]
[350598524,1737987043464,-26937.75697642,0.00011784,2]
[350598525,1737987043474,-9063.65298306,0.00011789,2]
[350598526,1737987043485,-360.90035838,0.00011797,2]
[350598527,1737987043495,-918.26195291,0.00011797,2]
[350598528,1737987043505,-200.0,0.000118,4]
[350598529,1737987043515,-816.38278356,0.00011825,2]
[350598530,1737987043525,-44662.81869526,0.00011825,2]
[350598531,1737987043535,-445.58359524,0.00011826,2]
[350598532,1737987043544,-784.76892564,0.00011826,2]
[350598533,1737987043555,-1776.55815904,0.00011827,2]
[350598534,1737987043564,-297.5949737,0.00011827,2]
[350598535,1737987043574,-2077.17280802,0.00011828,2]
[350598536,1737987043584,-3216.28662144,0.00011829,2]
[350598537,1737987043594,-3833.436426,0.00011829,2]
[350598538,1737987043605,-2086.67218868,0.00011829,2]
[350598539,1737987043615,-200.0,0.00011831,2]
[350598540,1737987043625,-7621.35093588,0.00011831,2]
[350598541,1737987043635,-257.19918669,0.00011832,2]
[350598542,1737987043645,-200.0,0.00011832,2]
[350598543,1737987043655,-312.82567887,0.00011832,2]
[350598544,1737987043665,-7621.35093588,0.00011833,2]
[350598545,1737987043676,-122973.33347449,0.00011833,2]
[350598548,1737987045192,-150.0,0.00010725,2]
[350598549,1737987045204,-150.0,0.00010729,2]
[350598550,1737987045216,-150.0,0.00010819,2]
[350598551,1737987045227,-157.97363732,0.00010858,2]
[350598552,1737987045251,-4842.02636268,0.00010858,2]
[350598553,1737987045261,-500.0,0.00010999,2]
[350598554,1737987045271,-182.87566635,0.00011039,2]